[Event "WSTCC-50 2024"]
[Site "Krakow"]
[Date "2024.07.03"]
[Round "2.21"]
[White "Skibbe, Diana"]
[Black "Slabek, Grzegorz"]
[Result "1/2-1/2"]
[ECO "B01"]
[WhiteElo "1942"]
[BlackElo "1962"]
[Annotator "NA RC"]
[PlyCount "169"]
[EventDate "2024.07.01"]
[EventType "team-tourn"]
[EventCountry "POL"]
[SourceTitle "playchess.com"]
[Source "ChessBase"]
[SourceQuality "1"]
[TimeControl "40/5400+30:1800+30"]

1. e4 {[%emt 0:00:03]} d5 {[%emt 0:00:20]} 2. exd5 {[%emt 0:00:04]} Nf6 {[%emt 0:00:10]} 3. d4 {[%emt 0:00:08]} Nxd5 {[%emt 0:00:12]} 4. c4 {[%emt 0:00:03]} Nb6 {[%emt 0:00:29]} 5. Nc3 {[%emt 0:00:25]} e5 {[%emt 0:01:32]} 6. d5 {[%emt 0:02:25]} c6 {[%emt 0:00:13]} 7. Nf3 {[%emt 0:01:36]} Bb4 {[%emt 0:00:18]} 8. Be3 {[%emt 0:09:29]} O-O {[%emt 0:03:32]} 9. Qb3 {[%emt 0:13:05]} Bxc3+ {[%emt 0:01:20]} 10. bxc3 {[%emt 0:01:10]} cxd5 {[%emt 0:00:24]} 11. cxd5 {[%emt 0:05:27]} e4 {[%emt 0:02:07]} 12. Bxb6 {[%emt 0:06:20]} axb6 {[%emt 0:00:58]} 13. Nd4 {[%emt 0:00:10]} e3 {[%emt 0:01:47]} 14. Be2 {[%emt 0:02:18]} exf2+ {[%emt 0:00:26]} 15. Kxf2 {[%emt 0:00:09]} Qh4+ {[%emt 0:01:27]} 16. g3 {[%emt 0:00:56]} Qh6 {[%emt 0:00:17]} 17. Nf3 {[%emt 0:05:42]} Na6 {[%emt 0:01:37]} 18. Qc4 {[%emt 0:03:20]} Nc5 {[%emt 0:01:00]} 19. Rhe1 {[%emt 0:01:37]} Ra3 {[%emt 0:00:50]} 20. Bf1 {[%emt 0:00:39]} Qf6 {[%emt 0:01:17]} 21. Re3 {[%emt 0:00:46]} Ra4 {[%emt 0:02:08]} 22. Qe2 {[%emt 0:00:41]} Bf5 {[%emt 0:02:11]} 23. Kg1 {[%emt 0:00:59]} Bd7 {[%emt 0:02:49]} 24. Bg2 {[%emt 0:00:31]} g6 {[%emt 0:00:36]} 25. Nd4 {[%emt 0:00:17]} Rfa8 {[%emt 0:00:58]} 26. Rf1 {[%emt 0:02:30]} Qg7 {[%emt 0:01:56]} 27. Rf2 {[%emt 0:02:13]} Qh6 {[%emt 0:09:50]} 28. Qf3 {[%emt 0:05:21]} Rf8 {[%emt 0:03:30]} 29. Bf1 {[%emt 0:01:09]} Bg4 {[%emt 0:02:01]} 30. Qf4 {[%emt 0:02:47]} Qxf4 {[%emt 0:00:35]} 31. Rxf4 {[%emt 0:00:08]} Bd7 {[%emt 0:01:38]} 32. Rf2 {[%emt 0:00:55]} Ra3 {[%emt 0:00:57]} 33. Nb5 {[%emt 0:07:28]} Raa8 {[%emt 0:01:42]} 34. Nd6 {[%emt 0:01:26]} f5 {[%emt 0:05:50]} 35. Re7 {[%emt 0:00:24]} Rad8 {[%emt 0:01:24]} 36. Bc4 {[%emt 0:03:28]} Rf6 {[%emt 0:01:42]} 37. Ne4 {[%emt 0:03:08]} Nxe4 {[%emt 0:00:58]} 38. Rxe4 {[%emt 0:00:02]} Kf8 {[%emt 0:01:22]} 39. Bb3 {[%emt 0:02:43]} b5 {[%emt 0:01:37]} 40. Re3 {[%emt 0:00:44]} Re8 {[%emt 0:04:14]} 41. Rfe2 {[%emt 0:30:28]} g5 {[%emt 0:30:47]} 42. Rxe8+ {[%emt 0:00:56]} Bxe8 {[%emt 0:00:10]} 43. Re5 {[%emt 0:02:41]} Bd7 {[%emt 0:00:23]} 44. Bc2 {[%emt 0:01:20]} h6 {[%emt 0:00:51]} 45. Bd3 {[%emt 0:03:39]} Kf7 {[%emt 0:03:44]} 46. Be2 {[%emt 0:01:29]} Rd6 {[%emt 0:01:22]} 47. Bf3 {[%emt 0:00:45]} Kf6 {[%emt 0:00:32]} 48. Re2 {[%emt 0:00:21]} Ra6 {[%emt 0:00:58]} 49. Kf2 {[%emt 0:00:34]} f4 {[%emt 0:00:38]} 50. gxf4 {[%emt 0:00:14]} gxf4 {[%emt 0:00:02]} 51. Ke1 {[%emt 0:03:54]} Ra3 {[%emt 0:01:17]} 52. d6 {[%emt 0:00:28]} Rxc3 {[%emt 0:00:33]} 53. Bxb7 {[%emt 0:00:04]} Rd3 {[%emt 0:04:17]} 54. Kf2 {[%emt 0:01:22]} Rxd6 {[%emt 0:00:29]} 55. Kf3 {[%emt 0:00:26]} Rd4 {[%emt 0:01:44]} 56. Be4 {[%emt 0:04:32]} Ra4 {[%emt 0:03:04]} 57. Rd2 {[%emt 0:00:00]} Be6 {[%emt 0:00:00]} 58. Rb2 {[%emt 0:00:00]} Bc4 {[%emt 0:00:00]} 59. Bc6 {[%emt 0:00:00]} Rxa2 {[%emt 0:00:00]} 60. Rxa2 {[%emt 0:00:00]} Bxa2 {[%emt 0:00:00]} 61. Bxb5 {[%emt 0:00:00]} Kg5 {[%emt 0:00:00]} 62. Bc6 {[%emt 0:00:00]} Bb1 {[%emt 0:00:00]} 63. Bd7 {[%emt 0:00:00]} Bf5 {[%emt 0:00:00]} 64. Bc6 {[%emt 0:00:00]} Be6 {[%emt 0:00:00]} 65. Be4 {[%emt 0:00:00]} Bg4+ {[%emt 0:00:00]} 66. Kf2 {[%emt 0:00:00]} Kf6 {[%emt 0:00:00]} 67. Bc6 {[%emt 0:00:00]} Ke5 {[%emt 0:00:00]} 68. Bb7 {[%emt 0:00:00]} Kf6 {[%emt 0:00:00]} 69. Bc6 {[%emt 0:00:00]} Kg5 {[%emt 0:00:00]} 70. Bd5 {[%emt 0:00:00]} Kh4 {[%emt 0:00:00]} 71. Bg2 {[%emt 0:00:00]} Bh5 {[%emt 0:00:00]} 72. Bf1 {[%emt 0:00:00]} Bd1 {[%emt 0:00:00]} 73. Bg2 {[%emt 0:00:00]} h5 {[%emt 0:00:00]} 74. Ke1 {[%emt 0:00:00]} f3 {[%emt 0:00:00]} 75. Bf1 {[%emt 0:00:00]} Ba4 {[%emt 0:00:00]} 76. Kf2 {[%emt 0:00:00]} Bc6 {[%emt 0:00:00]} 77. Kg1 {[%emt 0:00:00]} Bd7 {[%emt 0:00:00]} 78. Kf2 {[%emt 0:00:00]} Kg4 {[%emt 0:00:00]} 79. Ke3 {[%emt 0:00:00]} Bc8 {[%emt 0:00:00]} 80. Kf2 {[%emt 0:00:00]} Kf4 {[%emt 0:00:00]} 81. Bb5 {[%emt 0:00:00]} Bh3 {[%emt 0:00:00]} 82. Bc6 {[%emt 0:00:00]} Bg2 {[%emt 0:00:00]} 83. Bb7 {[%emt 0:00:00]} Kg4 {[%emt 0:00:00]} 84. Bc8+ {[%emt 0:00:00]} Kh4 {[%emt 0:00:00]} 85. Be6 {[%emt 0:00:00]} 1/2-1/2

[Event "WSTCC-50 2024"]
[Site "Krakow"]
[Date "2024.07.03"]
[Round "2.22"]
[White "Norinkeviciute, Rasa"]
[Black "Becker, Rogerio Sperb"]
[Result "1-0"]
[ECO "A20"]
[WhiteElo "1922"]
[BlackElo "2053"]
[Annotator "NA RC"]
[PlyCount "113"]
[EventDate "2024.07.01"]
[EventType "team-tourn"]
[EventCountry "POL"]
[SourceTitle "playchess.com"]
[Source "ChessBase"]
[SourceQuality "1"]
[TimeControl "40/5400+30:1800+30"]

1. c4 {[%emt 0:00:06]} e5 {[%emt 0:03:37]} 2. g3 {[%emt 0:02:25]} Nc6 {[%emt 0:00:54]} 3. Bg2 {[%emt 0:00:19]} Nf6 {[%emt 0:02:02]} 4. Nc3 {[%emt 0:03:18]} Bc5 {[%emt 0:02:04]} 5. e3 {[%emt 0:03:07]} d6 {[%emt 0:03:23]} 6. a3 {[%emt 0:00:41]} a6 {[%emt 0:01:00]} 7. Nge2 {[%emt 0:05:41]} O-O {[%emt 0:02:24]} 8. O-O {[%emt 0:04:44]} Re8 {[%emt 0:09:42]} 9. Qc2 {[%emt 0:03:06]} Bg4 {[%emt 0:07:17]} 10. h3 {[%emt 0:00:53]} Bh5 {[%emt 0:00:36]} 11. b4 {[%emt 0:02:30]} Ba7 {[%emt 0:03:09]} 12. Bb2 {[%emt 0:04:15]} Bg6 {[%emt 0:03:09]} 13. d3 {[%emt 0:01:31]} Qd7 {[%emt 0:03:27]} 14. Rad1 {[%emt 0:08:08]} h5 {[%emt 0:04:42]} 15. Qd2 {[%emt 0:09:33]} Rad8 {[%emt 0:22:18]} 16. Kh2 {[%emt 0:02:35]} Bf5 {[%emt 0:04:50]} 17. Nd5 {[%emt 0:14:46]} Nxd5 {[%emt 0:01:17]} 18. cxd5 {[%emt 0:00:49]} Ne7 {[%emt 0:00:45]} 19. e4 {[%emt 0:00:44]} Bg6 {[%emt 0:04:23]} 20. f4 {[%emt 0:03:32]} f6 {[%emt 0:01:34]} 21. d4 {[%emt 0:07:47]} c6 {[%emt 0:03:01]} 22. dxe5 {[%emt 0:02:07]} fxe5 {[%emt 0:01:58]} 23. dxc6 {[%emt 0:12:34]} Nxc6 {[%emt 0:00:54]} 24. f5 {[%emt 0:00:03]} Bh7 {[%emt 0:02:24]} 25. f6 {[%emt 0:01:11]} Rf8 {[%emt 0:02:14]} 26. Qg5 {[%emt 0:02:25]} g6 {[%emt 0:01:52]} 27. Ng1 {[%emt 0:03:31]} Bxg1+ {[%emt 0:01:22]} 28. Kxg1 {[%emt 0:00:21]} Rf7 {[%emt 0:00:55]} 29. Rf2 {[%emt 0:00:47]} Rdf8 {[%emt 0:02:03]} 30. Bf1 {[%emt 0:00:35]} b5 {[%emt 0:02:07]} 31. Rc1 {[%emt 0:00:40]} Nd4 {[%emt 0:02:01]} 32. Bxd4 {[%emt 0:00:31]} exd4 {[%emt 0:00:02]} 33. Qd5 {[%emt 0:00:06]} Kh8 {[%emt 0:01:42]} 34. Qxd4 {[%emt 0:00:10]} Qe6 {[%emt 0:00:28]} 35. Rc6 {[%emt 0:00:49]} Rxf6 {[%emt 0:01:40]} 36. Rxa6 {[%emt 0:00:43]} Kg8 {[%emt 0:00:32]} 37. Rxf6 {[%emt 0:00:12]} Rxf6 {[%emt 0:00:15]} 38. Ra8+ {[%emt 0:00:22]} Kg7 {[%emt 0:00:18]} 39. Ra7+ {[%emt 0:01:04]} Kh6 {[%emt 0:00:50]} 40. Bxb5 {[%emt 0:00:51]} g5 {[%emt 0:00:43]} 41. Bd7 {[%emt 0:08:35]} Qe5 {[%emt 0:01:14]} 42. Qxe5 {[%emt 0:02:24]} dxe5 {[%emt 0:00:02]} 43. Bf5 {[%emt 0:02:55]} Bxf5 {[%emt 0:00:11]} 44. exf5 {[%emt 0:00:01]} Rxf5 {[%emt 0:00:08]} 45. Ra6+ {[%emt 0:00:03]} Kg7 {[%emt 0:00:13]} 46. Kg2 {[%emt 0:00:03]} Kf7 {[%emt 0:01:14]} 47. a4 {[%emt 0:01:45]} h4 {[%emt 0:02:38]} 48. Rb6 {[%emt 0:03:12]} hxg3 {[%emt 0:04:00]} 49. a5 {[%emt 0:01:00]} e4 {[%emt 0:02:12]} 50. a6 {[%emt 0:01:55]} e3 {[%emt 0:02:35]} 51. a7 {[%emt 0:02:33]} Rf2+ {[%emt 0:03:51]} 52. Kxg3 {[%emt 0:00:08]} Ra2 {[%emt 0:00:05]} 53. Rb7+ {[%emt 0:00:40]} Ke6 {[%emt 0:00:09]} 54. Kf3 {[%emt 0:00:21]} e2 {[%emt 0:00:18]} 55. Kf2 {[%emt 0:00:19]} Kd5 {[%emt 0:00:15]} 56. Rb5+ {[%emt 0:02:09]} Kc6 {[%emt 0:01:16]} 57. Ra5 {[%emt 0:00:24]} 1-0

[Event "WSTCC-50 2024"]
[Site "Krakow"]
[Date "2024.07.03"]
[Round "2.22"]
[White "Kawula, Andrzej"]
[Black "Wolf, Sylvia"]
[Result "0-1"]
[ECO "A70"]
[WhiteElo "1847"]
[BlackElo "1992"]
[Annotator "NA RC"]
[PlyCount "72"]
[EventDate "2024.07.01"]
[EventType "team-tourn"]
[EventCountry "POL"]
[SourceTitle "playchess.com"]
[Source "ChessBase"]
[SourceQuality "1"]
[TimeControl "40/5400+30:1800+30"]

1. d4 {[%emt 0:00:09]} Nf6 {[%emt 0:00:02]} 2. c4 {[%emt 0:00:15]} c5 {[%emt 0:00:27]} 3. d5 {[%emt 0:00:19]} e6 {[%emt 0:00:06]} 4. Nc3 {[%emt 0:00:11]} exd5 {[%emt 0:00:04]} 5. cxd5 {[%emt 0:00:07]} d6 {[%emt 0:00:03]} 6. e4 {[%emt 0:00:22]} g6 {[%emt 0:00:05]} 7. Nf3 {[%emt 0:00:16]} Bg4 {[%emt 0:01:34]} 8. Be2 {[%emt 0:00:22]} Bg7 {[%emt 0:00:17]} 9. O-O {[%emt 0:01:07]} O-O {[%emt 0:00:19]} 10. h3 {[%emt 0:00:44]} Bxf3 {[%emt 0:01:14]} 11. Bxf3 {[%emt 0:00:11]} a6 {[%emt 0:01:25]} 12. a4 {[%emt 0:00:39]} Re8 {[%emt 0:04:27]} 13. Bf4 {[%emt 0:03:57]} Qc7 {[%emt 0:00:47]} 14. Rc1 {[%emt 0:06:16]} Nbd7 {[%emt 0:06:59]} 15. Re1 {[%emt 0:09:10]} Rab8 {[%emt 0:07:03]} 16. b4 {[%emt 0:05:36]} b5 {[%emt 0:10:32]} 17. bxc5 {[%emt 0:03:25]} Nxc5 {[%emt 0:00:25]} 18. axb5 {[%emt 0:04:39]} axb5 {[%emt 0:02:13]} 19. e5 {[%emt 0:03:40]} dxe5 {[%emt 0:20:59]} 20. d6 {[%emt 0:00:55]} Qb6 {[%emt 0:07:23]} 21. Rxe5 {[%emt 0:04:44]} Rxe5 {[%emt 0:05:44]} 22. Bxe5 {[%emt 0:00:33]} Ncd7 {[%emt 0:03:12]} 23. Bf4 {[%emt 0:11:25]} b4 {[%emt 0:03:57]} 24. Nd5 {[%emt 0:04:06]} Nxd5 {[%emt 0:00:56]} 25. Bxd5 {[%emt 0:00:26]} b3 {[%emt 0:01:53]} 26. Be3 {[%emt 0:07:39]} Qb4 {[%emt 0:01:41]} 27. Rb1 {[%emt 0:19:57]} b2 {[%emt 0:00:30]} 28. Qf3 {[%emt 0:09:12]} Ne5 {[%emt 0:01:46]} 29. Qe4 {[%emt 0:00:38]} Qxd6 {[%emt 0:02:12]} 30. Bf4 {[%emt 0:00:46]} Rb4 {[%emt 0:01:24]} 31. Bxe5 {[%emt 0:00:33]} Bxe5 {[%emt 0:00:04]} 32. Qf3 {[%emt 0:00:17]} Rf4 {[%emt 0:02:04]} 33. Qb3 {[%emt 0:00:47]} Qc5 {[%emt 0:00:28]} 34. Bf3 {[%emt 0:00:38]} Rc4 {[%emt 0:02:59]} 35. Qd3 {[%emt 0:01:37]} Rc1+ {[%emt 0:00:57]} 36. Bd1 {[%emt 0:00:10]} Qd4 {[%emt 0:00:51]} 0-1

[Event "WSTCC-50 2024"]
[Site "Krakow"]
[Date "2024.07.03"]
[Round "2.23"]
[White "Santanna, Paulo"]
[Black "Baliuniene, Margarita"]
[Result "0-1"]
[ECO "B23"]
[WhiteElo "2020"]
[BlackElo "1960"]
[Annotator "NA RC"]
[PlyCount "114"]
[EventDate "2024.07.01"]
[EventType "team-tourn"]
[EventCountry "POL"]
[SourceTitle "playchess.com"]
[Source "ChessBase"]
[SourceQuality "1"]
[TimeControl "40/5400+30:1800+30"]

1. e4 {[%emt 0:00:06]} c5 {[%emt 0:00:05]} 2. Nc3 {[%emt 0:00:09]} g6 {[%emt 0:00:14]} 3. d4 {[%emt 0:00:17]} cxd4 {[%emt 0:00:04]} 4. Qxd4 {[%emt 0:00:14]} Nf6 {[%emt 0:00:04]} 5. Nf3 {[%emt 0:00:33]} Nc6 {[%emt 0:00:08]} 6. Qa4 {[%emt 0:00:53]} d6 {[%emt 0:06:51]} 7. e5 {[%emt 0:00:38]} Nd7 {[%emt 0:03:10]} 8. exd6 {[%emt 0:02:45]} Nb6 {[%emt 0:02:36]} 9. Qf4 {[%emt 0:09:15]} exd6 {[%emt 0:09:52]} 10. Bb5 {[%emt 0:12:16]} Be7 {[%emt 0:03:52]} 11. O-O {[%emt 0:03:01]} O-O {[%emt 0:11:05]} 12. Bxc6 {[%emt 0:04:54]} bxc6 {[%emt 0:00:05]} 13. Qh6 {[%emt 0:00:10]} f6 {[%emt 0:04:29]} 14. b3 {[%emt 0:05:55]} Rf7 {[%emt 0:08:11]} 15. Bb2 {[%emt 0:01:51]} d5 {[%emt 0:02:36]} 16. Rad1 {[%emt 0:05:51]} Bd7 {[%emt 0:05:18]} 17. Rfe1 {[%emt 0:01:13]} Qf8 {[%emt 0:02:51]} 18. Qc1 {[%emt 0:02:29]} a5 {[%emt 0:06:52]} 19. a4 {[%emt 0:04:17]} Bb4 {[%emt 0:00:56]} 20. Re3 {[%emt 0:03:51]} Bc5 {[%emt 0:00:47]} 21. Ree1 {[%emt 0:01:04]} Re8 {[%emt 0:04:25]} 22. Rxe8 {[%emt 0:02:35]} Qxe8 {[%emt 0:00:34]} 23. h3 {[%emt 0:02:45]} Nc8 {[%emt 0:02:25]} 24. Qf4 {[%emt 0:04:57]} Bd6 {[%emt 0:01:44]} 25. Qd4 {[%emt 0:02:33]} Bf5 {[%emt 0:03:18]} 26. Rd2 {[%emt 0:02:35]} Qd8 {[%emt 0:04:25]} 27. g4 {[%emt 0:01:02]} Bd7 {[%emt 0:00:28]} 28. Re2 {[%emt 0:00:32]} Ne7 {[%emt 0:01:24]} 29. Qd3 {[%emt 0:03:00]} Qc8 {[%emt 0:01:28]} 30. Ne4 {[%emt 0:07:26]} dxe4 {[%emt 0:04:04]} 31. Qxd6 {[%emt 0:01:09]} Bxg4 {[%emt 0:01:21]} 32. hxg4 {[%emt 0:06:47]} Qxg4+ {[%emt 0:00:31]} 33. Qg3 {[%emt 0:00:48]} Qxf3 {[%emt 0:04:30]} 34. Qxf3 {[%emt 0:01:29]} exf3 {[%emt 0:00:01]} 35. Re3 {[%emt 0:01:03]} g5 {[%emt 0:01:07]} 36. Rxf3 {[%emt 0:00:17]} Kg7 {[%emt 0:00:08]} 37. Bc3 {[%emt 0:01:20]} Kg6 {[%emt 0:00:33]} 38. Bxa5 {[%emt 0:00:25]} g4 {[%emt 0:00:52]} 39. Rc3 {[%emt 0:01:19]} h5 {[%emt 0:00:13]} 40. Bd8 {[%emt 0:01:04]} Nf5 {[%emt 0:03:55]} 41. Rxc6 {[%emt 0:31:28]} Nd4 {[%emt 0:30:25]} 42. Rd6 {[%emt 0:00:00]} Nf3+ {[%emt 0:00:00]} 43. Kg2 {[%emt 0:00:00]} h4 {[%emt 0:00:00]} 44. a5 {[%emt 0:00:00]} h3+ {[%emt 0:00:00]} 45. Kh1 {[%emt 0:00:00]} Ng5 {[%emt 0:00:00]} 46. Rd4 {[%emt 0:00:00]} Kf5 {[%emt 0:00:00]} 47. a6 {[%emt 0:00:00]} Ne4 {[%emt 0:00:00]} 48. Bb6 {[%emt 0:00:00]} Nxf2+ {[%emt 0:00:00]} 49. Kh2 {[%emt 0:00:00]} Rg7 {[%emt 0:01:29]} 50. Kg3 {[%emt 0:04:20]} Ne4+ {[%emt 0:01:16]} 51. Rxe4 {[%emt 0:01:20]} Kxe4 {[%emt 0:00:01]} 52. a7 {[%emt 0:00:09]} Rg8 {[%emt 0:02:31]} 53. Bc7 {[%emt 0:01:32]} Ra8 {[%emt 0:00:24]} 54. Bb8 {[%emt 0:00:28]} f5 {[%emt 0:00:07]} 55. b4 {[%emt 0:00:22]} Kd5 {[%emt 0:00:11]} 56. b5 {[%emt 0:00:20]} Kc5 {[%emt 0:00:20]} 57. c4 {[%emt 0:00:02]} Kb6 {[%emt 0:00:39]} 0-1

[Event "WSTCC-50 2024"]
[Site "Krakow"]
[Date "2024.07.03"]
[Round "2.23"]
[White "Mai, Iris"]
[Black "Czernicki, Bogdan"]
[Result "0-1"]
[ECO "A59"]
[WhiteElo "1972"]
[BlackElo "1886"]
[Annotator "NA RC"]
[PlyCount "75"]
[EventDate "2024.07.01"]
[EventType "team-tourn"]
[EventCountry "POL"]
[SourceTitle "playchess.com"]
[Source "ChessBase"]
[SourceQuality "1"]
[TimeControl "40/5400+30:1800+30"]

1. d4 {[%emt 0:00:06]} Nf6 {[%emt 0:00:17]} 2. c4 {[%emt 0:00:21]} c5 {[%emt 0:00:14]} 3. d5 {[%emt 0:00:10]} b5 {[%emt 0:00:16]} 4. cxb5 {[%emt 0:00:21]} a6 {[%emt 0:00:08]} 5. bxa6 {[%emt 0:00:07]} Bxa6 {[%emt 0:00:11]} 6. Nc3 {[%emt 0:00:17]} g6 {[%emt 0:00:21]} 7. e4 {[%emt 0:00:35]} Bxf1 {[%emt 0:00:09]} 8. Kxf1 {[%emt 0:00:03]} d6 {[%emt 0:00:10]} 9. g3 {[%emt 0:01:00]} Bg7 {[%emt 0:01:31]} 10. Kg2 {[%emt 0:01:28]} Nbd7 {[%emt 0:00:20]} 11. Nf3 {[%emt 0:00:34]} O-O {[%emt 0:00:14]} 12. Qe2 {[%emt 0:01:43]} Qb8 {[%emt 0:02:03]} 13. h4 {[%emt 0:04:07]} h5 {[%emt 0:00:23]} 14. Rb1 {[%emt 0:17:10]} Ng4 {[%emt 0:00:16]} 15. Bg5 {[%emt 0:00:23]} Re8 {[%emt 0:00:44]} 16. Rhc1 {[%emt 0:07:36]} Qb7 {[%emt 0:06:03]} 17. Nd2 {[%emt 0:23:55]} Qa6 {[%emt 0:02:13]} 18. a3 {[%emt 0:15:15]} Nge5 {[%emt 0:03:03]} 19. Qxa6 {[%emt 0:12:48]} Rxa6 {[%emt 0:00:32]} 20. b4 {[%emt 0:03:02]} Nd3 {[%emt 0:00:30]} 21. Rc2 {[%emt 0:01:10]} Rxa3 {[%emt 0:06:59]} 22. Nb5 {[%emt 0:00:16]} Ra4 {[%emt 0:01:37]} 23. bxc5 {[%emt 0:00:19]} N7xc5 {[%emt 0:07:06]} 24. Nc3 {[%emt 0:07:02]} Rb4 {[%emt 0:03:03]} 25. Rf1 {[%emt 0:00:06]} Kf8 {[%emt 0:05:40]} 26. Be3 {[%emt 0:00:04]} Ra8 {[%emt 0:01:11]} 27. f3 {[%emt 0:00:37]} Bf6 {[%emt 0:03:53]} 28. Kh3 {[%emt 0:01:24]} Ra3 {[%emt 0:01:13]} 29. Ne2 {[%emt 0:01:06]} Rba4 {[%emt 0:02:26]} 30. Nc4 {[%emt 0:00:45]} Ra2 {[%emt 0:00:06]} 31. Rxa2 {[%emt 0:00:36]} Rxa2 {[%emt 0:00:01]} 32. Nf4 {[%emt 0:00:55]} Nxf4+ {[%emt 0:02:35]} 33. Bxf4 {[%emt 0:00:40]} Nd3 {[%emt 0:00:17]} 34. Be3 {[%emt 0:00:15]} Rc2 {[%emt 0:00:16]} 35. Na5 {[%emt 0:00:52]} Re2 {[%emt 0:00:28]} 36. Bg1 {[%emt 0:00:47]} Kg7 {[%emt 0:01:09]} 37. Nc6 {[%emt 0:00:04]} Ne1 {[%emt 0:02:10]} 38. Bb6 {[%emt 0:00:00]} 0-1

[Event "WSTCC-50 2024"]
[Site "Krakow"]
[Date "2024.07.03"]
[Round "2.24"]
[White "Buriene, Regina"]
[Black "Serafim Junior, Arnor"]
[Result "1/2-1/2"]
[ECO "B44"]
[WhiteElo "1904"]
[BlackElo "1770"]
[Annotator "NA RC"]
[PlyCount "82"]
[EventDate "2024.07.01"]
[EventType "team-tourn"]
[EventCountry "POL"]
[SourceTitle "playchess.com"]
[Source "ChessBase"]
[SourceQuality "1"]
[TimeControl "40/5400+30:1800+30"]

1. e4 {[%emt 0:00:06]} c5 {[%emt 0:00:09]} 2. Nf3 {[%emt 0:00:09]} e6 {[%emt 0:00:13]} 3. d4 {[%emt 0:01:56]} cxd4 {[%emt 0:00:07]} 4. Nxd4 {[%emt 0:00:05]} Nc6 {[%emt 0:00:13]} 5. Nb5 {[%emt 0:07:13]} d6 {[%emt 0:00:19]} 6. c4 {[%emt 0:06:19]} Nf6 {[%emt 0:00:30]} 7. N1c3 {[%emt 0:04:41]} Be7 {[%emt 0:01:01]} 8. Be2 {[%emt 0:02:59]} a6 {[%emt 0:01:37]} 9. Nd4 {[%emt 0:00:28]} O-O {[%emt 0:00:34]} 10. O-O {[%emt 0:00:08]} Qc7 {[%emt 0:06:32]} 11. Be3 {[%emt 0:10:13]} Bd7 {[%emt 0:15:33]} 12. Rc1 {[%emt 0:02:39]} Nxd4 {[%emt 0:01:03]} 13. Bxd4 {[%emt 0:07:30]} Rac8 {[%emt 0:14:33]} 14. Re1 {[%emt 0:16:47]} Qb8 {[%emt 0:01:33]} 15. Bf1 {[%emt 0:01:54]} b5 {[%emt 0:13:04]} 16. cxb5 {[%emt 0:04:18]} Bxb5 {[%emt 0:07:11]} 17. Nxb5 {[%emt 0:00:14]} axb5 {[%emt 0:00:03]} 18. Qd3 {[%emt 0:05:15]} b4 {[%emt 0:04:25]} 19. f3 {[%emt 0:02:03]} Nd7 {[%emt 0:06:49]} 20. Qb5 {[%emt 0:05:43]} Qxb5 {[%emt 0:04:15]} 21. Bxb5 {[%emt 0:00:02]} Nc5 {[%emt 0:07:09]} 22. Rc2 {[%emt 0:12:54]} Rb8 {[%emt 0:01:06]} 23. Bc4 {[%emt 0:00:45]} b3 {[%emt 0:01:42]} 24. axb3 {[%emt 0:01:32]} Nxb3 {[%emt 0:00:03]} 25. Bxb3 {[%emt 0:02:04]} Rxb3 {[%emt 0:00:03]} 26. Rec1 {[%emt 0:00:20]} Bg5 {[%emt 0:00:52]} 27. Ra1 {[%emt 0:00:31]} Rd8 {[%emt 0:02:29]} 28. Kf1 {[%emt 0:00:06]} Bf6 {[%emt 0:04:40]} 29. Bxf6 {[%emt 0:00:47]} gxf6 {[%emt 0:00:02]} 30. Ke2 {[%emt 0:00:46]} Rb7 {[%emt 0:04:16]} 31. Rb1 {[%emt 0:01:25]} d5 {[%emt 0:00:16]} 32. exd5 {[%emt 0:00:34]} Rxd5 {[%emt 0:00:02]} 33. b3 {[%emt 0:00:17]} Kf8 {[%emt 0:01:27]} 34. b4 {[%emt 0:00:08]} Ke7 {[%emt 0:00:08]} 35. Ke3 {[%emt 0:00:23]} Kd6 {[%emt 0:00:28]} 36. Ke4 {[%emt 0:01:08]} Re5+ {[%emt 0:01:25]} 37. Kd4 {[%emt 0:01:52]} Rd5+ {[%emt 0:01:02]} 38. Ke3 {[%emt 0:01:04]} Re5+ {[%emt 0:00:09]} 39. Kd4 {[%emt 0:00:10]} Rd5+ {[%emt 0:00:10]} 40. Ke3 {[%emt 0:01:35]} Re5+ {[%emt 0:00:08]} 41. Kd4 {[%emt 0:30:39]} Rd5+ {[%emt 0:30:11]} 1/2-1/2

[Event "WSTCC-50 2024"]
[Site "Krakow"]
[Date "2024.07.03"]
[Round "2.24"]
[White "Cholewa, Dorota"]
[Black "Jahn, Constanze"]
[Result "1/2-1/2"]
[ECO "A05"]
[WhiteElo "1530"]
[BlackElo "2051"]
[Annotator "NA RC"]
[PlyCount "102"]
[EventDate "2024.07.01"]
[EventType "team-tourn"]
[EventCountry "POL"]
[SourceTitle "playchess.com"]
[Source "ChessBase"]
[SourceQuality "1"]
[TimeControl "40/5400+30:1800+30"]

1. Nf3 {[%emt 0:07:55]} Nf6 {[%emt 0:00:09]} 2. g3 {[%emt 0:00:53]} b5 {[%emt 0:01:27]} 3. Bg2 {[%emt 0:00:32]} Bb7 {[%emt 0:00:05]} 4. O-O {[%emt 0:00:21]} e6 {[%emt 0:00:32]} 5. d3 {[%emt 0:05:05]} d6 {[%emt 0:06:18]} 6. Bg5 {[%emt 0:01:36]} Be7 {[%emt 0:00:34]} 7. Nbd2 {[%emt 0:01:49]} h6 {[%emt 0:03:31]} 8. Bxf6 {[%emt 0:00:28]} Bxf6 {[%emt 0:00:04]} 9. Rb1 {[%emt 0:00:46]} Nd7 {[%emt 0:04:28]} 10. c3 {[%emt 0:03:41]} O-O {[%emt 0:01:27]} 11. a4 {[%emt 0:04:40]} a6 {[%emt 0:09:31]} 12. axb5 {[%emt 0:06:07]} axb5 {[%emt 0:00:05]} 13. d4 {[%emt 0:00:52]} c5 {[%emt 0:04:39]} 14. e4 {[%emt 0:03:01]} Qb6 {[%emt 0:12:34]} 15. dxc5 {[%emt 0:13:49]} Nxc5 {[%emt 0:00:07]} 16. Qc2 {[%emt 0:02:04]} Rfd8 {[%emt 0:09:14]} 17. Rfe1 {[%emt 0:01:08]} Ra2 {[%emt 0:15:11]} 18. Ra1 {[%emt 0:06:22]} Rda8 {[%emt 0:02:27]} 19. Rxa2 Rxa2 20. e5 {[%emt 0:07:35]} dxe5 {[%emt 0:01:00]} 21. Nxe5 {[%emt 0:00:16]} Bxg2 {[%emt 0:03:25]} 22. Kxg2 {[%emt 0:00:18]} Bxe5 {[%emt 0:07:15]} 23. Rxe5 {[%emt 0:00:25]} Na4 {[%emt 0:00:26]} 24. Re2 {[%emt 0:13:28]} Qc6+ {[%emt 0:01:14]} 25. Qe4 {[%emt 0:01:18]} Qxe4+ {[%emt 0:03:32]} 26. Nxe4 {[%emt 0:01:06]} Kf8 {[%emt 0:00:53]} 27. Kf3 {[%emt 0:00:14]} Rxb2 {[%emt 0:04:35]} 28. Rxb2 {[%emt 0:00:16]} Nxb2 {[%emt 0:00:03]} 29. Nd6 {[%emt 0:00:52]} Ke7 {[%emt 0:00:54]} 30. Nxb5 {[%emt 0:00:11]} Kd7 {[%emt 0:00:10]} 31. Ke2 {[%emt 0:01:12]} Kc6 {[%emt 0:00:42]} 32. Na3 {[%emt 0:01:31]} Kd5 {[%emt 0:01:14]} 33. f3 {[%emt 0:01:12]} Na4 {[%emt 0:01:00]} 34. Kd3 {[%emt 0:04:01]} Nc5+ {[%emt 0:00:42]} 35. Ke3 {[%emt 0:00:41]} e5 {[%emt 0:02:46]} 36. c4+ {[%emt 0:02:55]} Kc6 {[%emt 0:01:01]} 37. Nc2 {[%emt 0:02:43]} Nb3 {[%emt 0:01:10]} 38. Kd3 {[%emt 0:04:03]} Kc5 {[%emt 0:00:17]} 39. Ne3 {[%emt 0:02:55]} Nd4 {[%emt 0:01:40]} 40. f4 {[%emt 0:00:45]} exf4 {[%emt 0:00:58]} 41. gxf4 {[%emt 0:30:21]} f5 {[%emt 0:06:42]} 42. h3 {[%emt 0:00:00]} g6 {[%emt 0:03:15]} 43. h4 {[%emt 0:00:00]} Ne6 {[%emt 0:03:34]} 44. Ng2 {[%emt 0:00:00]} Kb4 {[%emt 0:05:36]} 45. Ne3 {[%emt 0:00:00]} Nxf4+ {[%emt 0:03:08]} 46. Kd4 {[%emt 0:00:00]} Ne2+ {[%emt 0:01:16]} 47. Kd5 {[%emt 0:00:00]} Nc3+ {[%emt 0:02:04]} 48. Kd4 {[%emt 0:00:00]} f4 {[%emt 0:01:29]} 49. Ng4 {[%emt 0:00:00]} f3 {[%emt 0:03:02]} 50. c5 {[%emt 0:00:00]} Ne2+ {[%emt 0:02:05]} 51. Kd5 {[%emt 0:00:00]} Nc3+ {[%emt 0:01:05]} 1/2-1/2